Cogmind - Beta 13 @@@ ROGUE MODE // 2024.04.09 @ 23:30:11 Player: bruderalex Result: Core destroyed Performance ------------- Evolutions (2) 1000 Regions Visited (4) 800 Robots Destroyed (61) 305 Value Destroyed (1781) 1781 Prototype IDs (2) 40 Alien Tech Used (0) 0 Bonus (345) 345 TOTAL SCORE: 4271 Bonus ------- Pacifist 200 High Alert Combat Kills 145 Cogmind --------- Core Integrity 0/550 Matter 141/300 Energy 455/455 System Corruption 0% Temperature Critical (582) Movement Core (500) Ox9 Location -8/Storage Parts ------- > --- POWER (2) -------- Heavy Ion Engine Deuterium Engine > --- PROPULSION (4) --- Carbon-fiber Leg Wheel > --- UTILITY (3) ------ Small Storage Unit Signal Interpreter Advanced Targeting Computer > --- WEAPON (2) ------- Beam Rifle Particle Gun > --- INVENTORY (8) ---- High-capacity Matter Pod (200) Improved Terrain Scanner Improved Targeting Computer Field Recycling Unit (0) Heavy EM Shotgun Peak State ------------ > --- POWER ------------ Deuterium Engine Deuterium Engine > --- PROPULSION ------- Light Treads Improved Treads Improved Treads Advanced Treads > --- UTILITY ---------- Small Storage Unit High-capacity Matter Pod Signal Interpreter > --- WEAPON ----------- Ion Cannon Ion Cannon > --- INVENTORY -------- Heavy Ion Engine Deuterium Engine Heat Sink Improved Terrain Scanner Improved Targeting Computer Advanced Targeting Computer Field Recycling Unit [Rating: 24] Favorites ----------- Power Heavy Ion Engine Engine Heavy Ion Engine Propulsion Advanced Treads Treads Advanced Treads Leg Aluminum Leg Wheel Wheel Utility Small Storage Unit Device Heat Sink Storage Small Storage Unit Processor Signal Interpreter Weapon Assault Rifle Energy Gun Improved Medium Laser Energy Cannon Ion Cannon Ballistic Gun Assault Rifle Launcher Grenade Launcher Build | -11 -10 -9 -8 -8 ------- Run | Yrd Mat Mat Mat Sto Slots Evolved 4 | . . 2 2 . Power 1 | . . . 1 . Propulsion 2 | . . 2 . . Utility 1 | . . . 1 . Weapon . | . . . . . Parts Attached 50 | 6 2 23 6 13 Power 10 | 1 . 4 3 2 Engine 10 | 1 . 4 3 2 Core . | . . . . . Reactor . | . . . . . Propulsion 18 | 2 . 11 . 5 Treads 12 | 2 . 9 . 1 Leg 3 | . . . . 3 Wheel 3 | . . 2 . 1 Hover . | . . . . . Flight . | . . . . . Utility 8 | 1 1 2 1 3 Device 2 | . . . . 2 Storage 3 | 1 . 1 1 . Processor 3 | . 1 1 . 1 Hackware . | . . . . . Protection . | . . . . . Artifact . | . . . . . Weapon 14 | 2 1 6 2 3 Energy Gun 4 | . . 2 . 2 Energy Cannon 2 | . . . 1 1 Ballistic Gun 5 | 2 1 2 . . Ballistic Cannon . | . . . . . Launcher 3 | . . 2 1 . Special Weapon . | . . . . . Impact Weapon . | . . . . . Slashing Weapon . | . . . . . Piercing Weapon . | . . . . . Special Melee Weapon . | . . . . . Unidentified Prototypes 2 | . . 2 . . Parts Lost 24 | . . 9 2 13 Power 3 | . . 1 . 2 Propulsion 12 | . . 5 . 7 Utility 1 | . . . . 1 Weapon 8 | . . 3 2 3 Highest Loss Streak 4 | . . 4 1 4 To Critical Strikes . | . . . . . Average Slot Usage (%) 90 | . 88 91 96 87 Engine 12 | . 14 9 18 16 Treads 27 | . 28 30 36 16 Leg 2 | . . . . 9 Wheel 6 | . . 9 . 1 Device 1 | . . . . 6 Storage 11 | . 14 11 18 10 Processor 8 | . 3 8 9 9 Energy Gun 5 | . . 9 . 1 Energy Cannon 3 | . . . . 13 Ballistic Gun 6 | . 28 8 . . Launcher 3 | . . 3 14 1 Naked Turns . | . . . . . Heaviest Build 39 | 13 14 19 36 39 Greatest Support 90 | 40 40 90 88 88 Greatest Overweight (x) 2 | . . 2 . 2 Average Overweight (x) . | . . . . . Largest Inventory Capacity 8 | 8 8 8 8 8 Average Capacity 7 | 7 8 8 8 8 Most Carried 8 | 4 8 8 8 8 Average Carried 7 | 2 7 7 6 7 Final Capacity 8 | 8 8 8 8 8 Final Carried 8 | 4 8 8 8 5 Class Distribution -------------------- 96% | Mutant 3% | Scavenger-Mutant Dominant Class ---------------- Mutant | -10/Materials Mutant | -9/Materials Mutant | -8/Materials Mutant | -8/Storage Resources | -11 -10 -9 -8 -8 ----------- Run | Yrd Mat Mat Mat Sto Matter Collected 1296 | 40 . 704 233 319 Remotely . | . . . . . Salvage Created 1970 | . . 798 399 773 Parts 91 | . . 51 19 21 Haulers Intercepted . | . . . . . Recyclers Shooed 5 | . . 2 3 . Parts Field Recycled . | . . . . . Retrieved Matter . | . . . . . Parts Self-Destructed . | . . . . . Prevented . | . . . . . Kills | -11 -10 -9 -8 -8 ------- Run | Yrd Mat Mat Mat Sto Combat Hostiles Destroyed 44 | . . 25 6 13 Melee 2 | . . 2 . . Guns 13 | . . 13 . . Cannons 11 | . . . . 11 AOE 17 | . . 9 6 2 Classes Destroyed 9 | . . 7 2 . Worker 7 | . . 5 1 1 Builder 3 | . . 1 1 1 Recycler 5 | . . . 4 1 Watcher 2 | . . 2 . . Swarmer 7 | . . 7 . . Grunt 28 | . . 13 5 10 Duelist 1 | . . 1 . . Sentry 7 | . . 4 . 3 Hunter 1 | . . . 1 . Best Kill Streak 5 | . . 5 5 4 Combat Bots Only 5 | . . 5 3 3 Max Kills in Single Turn 3 | . . 2 3 2 Gunslinging . | . . . . . Exploded 2 | . . 2 2 1 Melee 1 | . . 1 . . Uniques/NPCs Destroyed . | . . . . . Combat | -11 -10 -9 -8 -8 -------- Run | Yrd Mat Mat Mat Sto Hostile Shots Fired 290 | . . 136 19 135 Missed 55 | . . 29 4 22 Damage Taken 3866 | . . 1572 251 2043 Core 793 | . . 221 30 542 Absorbed by Shields . | . . . . . Core Remaining (%) 81 | 100 100 44 . . Volleys Fired 127 | . . 64 11 52 Largest 2 | . . 2 2 2 Hottest 121 | . . 96 60 121 Shots Fired 231 | . . 116 16 99 Gun 111 | . . 92 . 19 Cannon 74 | . . . . 74 Launcher 46 | . . 24 16 6 Special . | . . . . . Kinetic 20 | . . 20 . . Thermal 165 | . . 72 . 93 Explosive 46 | . . 24 16 6 Electromagnetic . | . . . . . Robot Hit Streak 16 | . . 13 13 16 Robot Miss Streak 3 | . . 3 1 3 Penetration Max . | . . . . . Secondary Targets . | . . . . . Shots Hit Robots 171 | . . 81 15 75 Core Hits 124 | . . 58 35 31 Critical Kills . | . . . . . Critical Parts Destroyed . | . . . . . Critical Strikes 8 | . . 6 . 2 Burn 8 | . . 6 . 2 Melee Attacks . | . . . . . Impact . | . . . . . Slashing . | . . . . . Piercing . | . . . . . Sneak Attacks . | . . . . . Combat Hostiles . | . . . . . Follow-up Attacks . | . . . . . Damage Inflicted 4908 | . 3 1863 1240 1802 Guns 1113 | . . 910 . 203 Cannons 1328 | . . . . 1328 Explosions 2432 | . . 930 1240 262 Melee . | . . . . . Ramming 35 | . 3 23 . 9 Kinetic 158 | . . 158 . . Thermal 2283 | . . 752 . 1531 Explosive 2432 | . . 930 1240 262 Electromagnetic . | . . . . . Impact . | . . . . . Slashing . | . . . . . Piercing . | . . . . . Highest Corruption 2 | . . 2 . . Average Corruption 2 | . . 2 . . Corruption Purged . | . . . . . Corruption Blocked . | . . . . . Effects 17 | . . 17 . . Message Errors 4 | . . 4 . . Matter Fused 5 | . . 5 . . Heat Flow Errors 3 | . . 3 . . Energy Discharges 1 | . . 1 . . Data Loss (minor) 1 | . . 1 . . Data Loss (major) 1 | . . 1 . . Misfires 2 | . . 2 . . Overload Shots . | . . . . . Overflow Damage 33 | . . 17 10 6 Projectiles 6 | . . . . 6 Explosions 27 | . . 17 10 . Melee . | . . . . . Knockbacks . | . . . . . Impact . | . . . . . Kinetic . | . . . . . Secondary . | . . . . . Self-Inflicted Damage 308 | . . 285 23 . Shots 15 | . . 13 2 . Rammed 16 | . 1 12 1 2 Targets Rammed 19 | . 1 14 1 3 Kicked 1 | . . . . 1 Crushed 2 | . . 2 . . Highest Temperature 611 | . . 228 33 611 Average Temperature 112 | . . 61 15 169 Received Heat Transfer 1416 | . . 354 90 972 Effects 23 | . . . . 23 Shutdowns 3 | . . . . 3 Energy Bleed 2 | . . . . 2 Interference 3 | . . . . 3 Matter Decay 4 | . . . . 4 Short Circuit 3 | . . . . 3 Damage (minor) 1 | . . . . 1 Damage (major) 4 | . . . . 4 Damage (core) 3 | . . . . 3 Siege Activations . | . . . . . Robots Corrupted . | . . . . . Combat Hostiles . | . . . . . Parts Fried . | . . . . . Impact Corruptions . | . . . . . Robots Melted 1 | . . 1 . . Combat Hostiles 1 | . . 1 . . Parts Melted 12 | . . 6 . 6 Heat Transferred 4902 | . . 2090 . 2812 Parts Sabotaged . | . . . . . Parts Stolen . | . . . . . Parts Stripped . | . . . . . Power Chain Reactions . | . . . . . Alert | -11 -10 -9 -8 -8 ------- Run | Yrd Mat Mat Mat Sto Peak Influence 545 | . . 542 504 545 Initial 223 | . . . 223 212 Average 215 | . . 148 387 396 Maximum Alert Level 2 | . . 2 2 2 Low Security (%) 50 | 100 100 71 . . Level 1 27 | . . 18 47 53 Level 2 21 | . . 10 52 46 Level 3 . | . . . . . Level 4 . | . . . . . Level 5 . | . . . . . High Security . | . . . . . Max Security . | . . . . . Squads Dispatched 8 | . . 4 2 2 Investigation 2 | . . 2 . . Extermination . | . . . . . Reinforcement 6 | . . 2 2 2 Assault . | . . . . . Garrison . | . . . . . Intercept . | . . . . . Searches Triggered . | . . . . . Construction Impeded 2 | . . 1 1 . Haulers Reinforced . | . . . . . Active Scanning Responses . | . . . . . Cargo Convoy Interrupts . | . . . . . Stealth | -11 -10 -9 -8 -8 --------- Run | Yrd Mat Mat Mat Sto Distress Signals 8 | . . 4 . 4 Communications Jammed . | . . . . . Distress Signals . | . . . . . Times Spotted 68 | . . 39 10 19 Peak Tracking Total 6 | . . 6 4 4 Tactical Retreats 2 | . . 2 . . Traps | -11 -10 -9 -8 -8 ------- Run | Yrd Mat Mat Mat Sto Traps Triggered 4 | . . 3 . 1 Indirectly . | . . . . . Trap Hack Attempts . | . . . . . Triggered . | . . . . . Disarmed . | . . . . . Reprogrammed . | . . . . . Reused . | . . . . . Traps Extracted . | . . . . . Installed . | . . . . . Triggered . | . . . . . Machines | -11 -10 -9 -8 -8 ---------- Run | Yrd Mat Mat Mat Sto Machines Disabled 7 | . . 5 2 . Max in Single Turn 3 | . . 3 1 . Machines Repaired . | . . . . . Machines Dismantled . | . . . . . Machines Sabotaged . | . . . . . Overloaded Fab Kills . | . . . . . Hacking | -11 -10 -9 -8 -8 --------- Run | Yrd Mat Mat Mat Sto Machines Accessed . | . . . . . Terminals . | . . . . . Fabricators . | . . . . . Repair Stations . | . . . . . Recycling Units . | . . . . . Scanalyzers . | . . . . . Garrison Access . | . . . . . Total Hacks . | . . . . . Successful . | . . . . . Failed . | . . . . . Catastrophic . | . . . . . Database Lockouts . | . . . . . Manual . | . . . . . Terminals . | . . . . . Fabricators . | . . . . . Repair Stations . | . . . . . Recycling Units . | . . . . . Scanalyzers . | . . . . . Garrison Access . | . . . . . Terminal Hacks . | . . . . . Fabricator Hacks . | . . . . . Repair Station Hacks . | . . . . . Recycling Unit Hacks . | . . . . . Scanalyzer . | . . . . . Garrison Access Hacks . | . . . . . Unauthorized Hacks . | . . . . . Terminals . | . . . . . Fabricators . | . . . . . Repair Stations . | . . . . . Recycling Units . | . . . . . Scanalyzers . | . . . . . Garrison Access . | . . . . . Data Cores Recovered . | . . . . . Used . | . . . . . Hacking Detections . | . . . . . Full Trace Events . | . . . . . Feedback Events . | . . . . . Feedback Blocked . | . . . . . Robot Schematics Acquired . | . . . . . Robots Built . | . . . . . Authchips . | . . . . . Time . | . . . . . Total Robot Build Rating . | . . . . . Part Schematics Acquired . | . . . . . Parts Built . | . . . . . Authchips . | . . . . . Time . | . . . . . Total Part Build Rating . | . . . . . Parts Repaired . | . . . . . Time . | . . . . . Parts Recycled . | . . . . . Recycled Matter . | . . . . . Retrieved Matter . | . . . . . Retrieved Components . | . . . . . Parts Scanalyzed . | . . . . . Part Schematics Acquired . | . . . . . Parts Damaged . | . . . . . Bothacking | -11 -10 -9 -8 -8 ------------ Run | Yrd Mat Mat Mat Sto Used RIF Installer . | . . . . . Robots Hacked . | . . . . . Non-combat . | . . . . . Combat . | . . . . . Robot Hacks Applied . | . . . . . Relay Couplers Released . | . . . . . Fabnet Peak Effective % . | . . . . . Robots Rewired . | . . . . . Allies Hacked . | . . . . . Hacks Repelled . | . . . . . Allies | -11 -10 -9 -8 -8 -------- Run | Yrd Mat Mat Mat Sto Total Allies . | . . . . . Largest Group . | . . . . . Highest-Rated Group . | . . . . . Highest-Rated Ally . | . . . . . Total Orders . | . . . . . Ally Attacks . | . . . . . Total Damage . | . . . . . Kills . | . . . . . Allies Corrupted . | . . . . . Allies Melted . | . . . . . Intel | -11 -10 -9 -8 -8 ------- Run | Yrd Mat Mat Mat Sto Robot Analysis Total . | . . . . . Derelict Logs Recovered . | . . . . . Drone Launches . | . . . . . Drone Recoveries . | . . . . . Exploration | -11 -10 -9 -8 -8 ------------- Run | Yrd Mat Mat Mat Sto Turns Passed 2191 | 61 147 1261 197 525 Spaces Moved 1049 | 34 87 634 99 195 Core 6 | 5 . 1 . . Treads 943 | 29 87 633 99 95 Legs 100 | . . . . 100 Wheels . | . . . . . Hover . | . . . . . Flight . | . . . . . Fastest Speed 50 | 50 160 145 156 120 Average Speed 150 | 143 160 146 156 157 Slowest Speed 260 | 160 160 160 156 260 Overloaded Moves . | . . . . . Propulsion Burnouts . | . . . . . Robots Hopped . | . . . . . Cave-ins Triggered . | . . . . . Exploration Rate (%) 22 | 3 18 43 11 35 Regions Visited 4 Branch Regions 1 Pre-discovered Areas 1 | . . . . 1 Known Exits Taken 2 | . . 1 1 . Unknown Exits Taken 2 | 1 1 . . . Scrap Searched . | . . . . . Spaces Dug . | . . . . . Terrain Destroyed 227 | . . 101 81 45 Melee . | . . . . . Projectile 9 | . . . . 9 AOE 218 | . . 101 81 36 Terrain Rammed . | . . . . . Walls Destroyed . | . . . . . Machines Disabled . | . . . . . Actions | -11 -10 -9 -8 -8 --------- Run | Yrd Mat Mat Mat Sto Total 1418 | 43 94 845 125 311 Wait 140 | . . 94 3 43 Move 1045 | 33 86 633 98 195 Hop . | . . . . . Pick Up 22 | 4 4 8 3 3 Fast Attach 24 | 6 1 10 2 5 Attach 19 | . 1 8 3 7 Detach 5 | . 1 2 1 1 Swap 7 | . . 5 1 1 Drop 10 | . . 7 2 1 Fire 127 | . . 64 11 52 Melee . | . . . . . Ram 2 | . . 2 . . Kick 1 | . . . . 1 Crush 16 | . 1 12 1 2 Escape Stasis . | . . . . . Rewire . | . . . . . Trap . | . . . . . Miscellaneous . | . . . . . Route ------- -11/Scrapyard -10/Materials -9/Materials (discovered 2 exits: *Mat / *Min) -8/Materials -8/Storage History --------- Turn | Location | Event 4 | -11/Scrapyard | Discovered new exit (range 15) 62 | -11/Scrapyard | Entered Materials 194 | -10/Materials | Discovered new exit (range 7) 209 | -10/Materials | Entered another Materials area 209 | -9/Materials | Evolved 2 slots: Propulsion x2 318 | -9/Materials | Build established: Mutant 815 | -9/Materials | Lost 4 parts (1p2n1w) 1194 | -9/Materials | Discovered new exit (range 13) 1210 | -9/Materials | Identified exit to Mines 1367 | -9/Materials | Core integrity fell below 50% 1432 | -9/Materials | Discovered new exit (range 16) 1469 | -9/Materials | Identified exit to Materials 1470 | -9/Materials | Entered another Materials area 1470 | -8/Materials | Evolved 2 slots: Power x1, Utility x1 1643 | -8/Materials | Discovered new exit (range 3) 1646 | -8/Materials | Identified exit to Storage 1667 | -8/Materials | Entered Storage 1979 | -8/Storage | Lost 3 parts (1p2n) 2128 | -8/Storage | Learned location of Armory (-3) 2166 | -8/Storage | Core integrity fell below 50% 2188 | -8/Storage | Core integrity fell below 20% 2193 | -8/Storage | Core destroyed Last Messages --------------- 02176_ G-47 Trooper overheating. 02178_ G-47 Trooper heat short circuits Aluminum Leg. 02181_ Power failure, Hvy. Ion Engine shutdown. 02182_ Carbon-fiber Leg broken. 02182_ Overheating: Short circuit. 02184_ Overheating: Matter decay (-52). 02186_ Power failure, Deuterium Engine shutdown. 02186_ Signal Interpreter broken. 02186_ Overheating: Short circuit. 02187_ Overheating: Energy bleed (-49). 02188_ Overheating: Core damaged (-82). 02188_ G-47 Trooper suffers critical hit (Burn). 02188_ G-47 Trooper overheating. 02190_ Adv. Targeting Computer broken. 02190_ Overheating: Short circuit. 02190_ G-47 Trooper overheating. 02192_ Overheating: Matter decay (-17). 02192_ G-47 Trooper heat damages Lgt. Nuclear Core, Aluminum Leg, Aluminum Leg. 02193_ Overheating: Core damaged (-99). Map ----- +----------------------------------------------------+ | ?????????????# """ ## !%% " | | ?????????????# """ #####%/### | | ?????????????# """ #??# % # | | ?????????????# #### | | ?????????????# """%/ % | | ?????????????# """ #### | | ?????????????# """ #??# # | | ?????????????# #??####### | | ?????????????# """ #????????? | | ?????????????# """ #????????? | | ???????####### """ #????????? | | ???????# # #??####??? | | ???????# """ ###+##### #??? | | ???????# """ + #??? | | ???????# """ ## #??? | | ???????# ## #??? | | ???????# !! ## """ ####??? | | ???????# !==## """ #?????? | | ??????##! != ## """ #?????? | | ??????# ## """ #?????? | | ??????##% ## """ #?????? | | ???????# ## #?????? | | ??????## ## #?????? | | ??####;#+##+## """ #?????? | | ??# g/ ^ """ ??? | | ??# @# ^ """ | | ??# # """ ###? | | ??##### ##### """ #??? | | ??????# ##??# #??? | | ??????# T#??# ?#??? | | ??????# ##??# #??? | | ??????""""???# ???? | | ?????????????######+## ???? | | ???????????????????????+#????? | | ?????????????????????????????? | | ?????????????????????????????? | | ?????????????????????????????? | | ?????????????????????????????? | | ?????????????????????????????? | | ?????????????????????????????? | | ?????????????????????????????? | | ?????????????????????????????? | | ?????????????????????????????? | | ?????????????????????????????? | | ?????????????????????????????? | | ?????????????????????????????? | | | | | | | | | +----------------------------------------------------+ Best States ------------- Heat Dissipation 45 Energy Generation 23 Energy Capacity 460 Matter Stores 396 Matter Capacity 500 Sight Range 16 Terrain Scan Density 10 Evasion (%) 50 Targeting Accuracy 8 Recoil Reduction 4 Item Schematics ----------------- None Robot Schematics ------------------ None Fabricated ------------ Nothing Alien Tech Used ----------------- None Achievements -------------- None Challenges ------------ None Game ------ Seed VortexSkeletonBoregun Manual? 0 Play Time 00:19:27 Cumulative 9.6 hours Start 2024.04.09 @ 23:11:39 End 2024.04.09 @ 23:30:11 Sessions 1 Manual Loads 0 Difficulty Rogue Special Mode None Game No. 25 Rogue 19 Adventurer 6 Explorer 0 Win Type - Total 0 Types 0/0/0/0/0/0/0/0/0 Lore% 15 Gallery% 17 Achievement% 16 Wizard Run 0 Options --------- Layout 0 ASCII 0 Keyboard 1 Movement Numpad Keybinds 0 Fullscreen 1 Font 18/SmallcapsGlow Map View 76x50 Zoom Use 0% Tactical HUD 1 Map Filters NONE Filters NONE Steam 1 RUN: 1af22393-5b91-415d-b9d3-2e4d64fc4557